bitfinex-derivatives/quotes_ETHF0:USTF0_20260303
["timestamp","ask_amount","ask_price","bid_price","bid_amount"]
[1772502004793,1.10244364,2028.9,2027.9,6.4774062]
[1772502004991,1.10244364,2028.9,2027.9,0.0204062]
[1772502005894,1.10782428,2028.9,2027.9,0.02677457]
[1772502006398,1.10782428,2028.9,2028.0,0.01955223]
[1772502006593,1.10782428,2028.9,2028.1,0.01955223]
[1772502008193,1.10782428,2028.9,2027.9,0.02774426]
[1772502008398,1.10782428,2028.9,2028.0,0.02137589]
[1772502008891,1.10782428,2028.9,2028.5,0.02137589]
[1772502008892,0.00538064,2028.9,2028.5,0.02137589]
[1772502009092,1.1099585,2028.9,2028.3,0.02245062]
[1772502009298,1.1099585,2028.9,2028.2,0.02245062]
[1772502010599,1.1099585,2028.9,2027.9,0.03165161]
[1772502011393,1.1099585,2028.9,2027.9,0.00636837]
[1772502013498,1.1099585,2028.9,2027.9,0.03599958]
[1772502018101,1.1099585,2028.9,2028.2,0.01143958]
[1772502019107,1.1099585,2028.9,2028.1,0.01236916]
[1772502019300,1.11662626,2029.2,2028.4,0.00698852]
[1772502019903,1.11662626,2029.2,2028.7,0.00997839]
[1772502020105,1.11662626,2029.2,2028.3,9.74687625]
[1772502020310,1.12066961,2029.2,2028.4,0.01103597]
[1772502021004,1.12066961,2029.2,2028.2,7.71787661]
[1772502021210,1.12066961,2029.2,2028.2,0.01089658]
[1772502022006,1.12066961,2029.2,2028.1,14.17012884]
[1772502022208,2.03989622,2028.2,2027.4,7.70512008]
[1772502022512,2.03989622,2027.7,2027.1,15.0]
[1772502022805,2.03989622,2027.7,2026.7,1.12438661]
[1772502022998,1.07083335,2027.6,2026.8,19.19839908]
[1772502023201,1.07083335,2027.6,2026.8,20.32843447]
[1772502023403,1.07693834,2027.6,2026.8,20.32843447]
[1772502024511,1.07693834,2027.6,2026.9,1.07516587]
[1772502025220,1.07693834,2027.6,2027.0,8.40347439]
[1772502025413,1.07693834,2027.6,2027.1,4.19839908]
[1772502026610,1.07693834,2027.6,2027.2,15.0]
[1772502027607,1.07693834,2027.6,2027.2,12.92795913]
[1772502027806,1.07693834,2027.6,2026.8,0.00571841]
[1772502027807,2.03989622,2027.4,2026.8,0.00571841]
[1772502028113,0.11619268,2027.2,2026.2,2.12447355]
[1772502028310,0.11619268,2027.2,2026.6,4.19839908]
[1772502028511,0.11619268,2027.2,2026.3,2.12447355]
[1772502028707,0.25274499,2027.6,2026.5,4.22246509]
[1772502028708,0.00610499,2027.6,2026.5,4.22246509]
[1772502028912,0.01386923,2027.5,2026.6,2.18256887]
[1772502029113,0.01689335,2027.2,2026.6,12.72804276]
[1772502029312,0.01689335,2027.2,2026.7,2.17563527]
[1772502029914,0.01689335,2027.2,2026.6,12.72804276]
[1772502030111,0.01689335,2027.2,2026.6,16.8102512]
[1772502031812,0.00133191,2027.3,2026.7,2.16981149]
[1772502032108,0.00610499,2027.6,2026.8,2.18472108]
[1772502032306,6.457,2028.0,2027.1,2.18472108]
[1772502032508,6.457,2028.0,2027.0,7.3280171]
[1772502032509,6.457,2028.0,2027.3,4.08220844]
[1772502033211,6.46220646,2028.0,2027.3,4.08220844]
[1772502033410,0.00520646,2028.0,2027.3,4.08220844]
[1772502033612,6.46220646,2028.0,2027.3,18.99515226]
[1772502033911,6.46220646,2028.0,2027.4,2.17123602]
[1772502033912,0.01176071,2028.0,2027.4,2.17123602]
[1772502034514,0.01176071,2028.0,2027.6,2.17123602]
[1772502034715,6.457,2028.2,2027.2,2.17451315]
[1772502035117,6.457,2028.2,2027.4,2.17476567]
[1772502035417,2.03989622,2028.5,2027.6,4.08220844]
[1772502035618,6.457,2028.4,2027.6,4.08220844]
[1772502036116,0.00596508,2028.3,2027.6,4.08220844]
[1772502036317,6.457,2028.3,2027.7,12.72804276]
[1772502036513,0.00435208,2028.5,2027.8,2.16665628]
[1772502036715,6.46135208,2028.5,2027.8,2.16665628]
[1772502039020,8.5012483,2028.5,2027.9,16.8102512]
[1772502039221,8.5012483,2028.5,2027.9,4.08220844]
[1772502039622,6.46135208,2028.5,2027.9,4.08220844]
[1772502040617,6.46135208,2028.5,2027.7,2.16709635]
[1772502040817,6.46135208,2028.5,2027.8,12.72804276]
[1772502041218,6.46135208,2028.5,2027.9,4.08220844]
[1772502042624,6.46135208,2028.5,2027.8,12.72804276]
[1772502043124,6.46135208,2028.5,2027.8,20.05605986]
[1772502043324,6.46135208,2028.5,2027.9,2.16666123]
[1772502043525,6.46135208,2028.5,2027.9,6.24886967]
[1772502043726,6.46235208,2028.5,2028.0,22.22272109]
[1772502043925,6.46235208,2028.5,2028.0,22.22708975]
[1772502044126,6.46235208,2028.5,2028.0,12.73241142]
[1772502044425,6.46235208,2028.5,2028.1,7.3280171]
[1772502044923,6.46235208,2028.5,2028.2,7.3280171]
[1772502045126,6.46235208,2028.5,2028.0,12.73241142]
[1772502045321,6.46235208,2028.5,2028.1,4.08220844]
[1772502045522,6.46235208,2028.5,2028.1,11.29577478]
[1772502045722,6.46235208,2028.5,2028.1,4.08220844]
[1772502045922,6.46235208,2028.5,2028.2,7.21356634]
[1772502046226,6.46235208,2028.5,2028.2,7.09911558]
[1772502046727,2.03989622,2028.8,2028.3,2.16241613]
[1772502046728,10.54000244,2028.8,2028.3,2.16241613]
[1772502046927,0.24649,2028.9,2028.3,2.16241613]
[1772502046928,6.458,2028.9,2028.3,2.16241613]
[1772502047127,6.54733279,2028.9,2028.4,21.98945008]
[1772502047327,6.54733279,2028.9,2028.5,2.16229174]
[1772502047527,0.09087277,2028.8,2028.5,2.16229174]
[1772502047725,0.09087277,2028.8,2028.4,4.08220844]
[1772502047726,4.08200244,2029.2,2028.6,14.93577089]
[1772502047925,0.06579186,2029.0,2028.1,2.20772813]
[1772502048123,0.06579186,2029.0,2028.3,7.09911558]
[1772502048319,0.06653392,2028.9,2028.4,2.17483219]
[1772502048628,7.20005623,2029.0,2028.6,6.25704063]
[1772502048828,0.00413651,2028.9,2028.6,6.25704063]
[1772502049127,2.03669089,2029.2,2028.9,7.09911558]
[1772502049326,2.03669089,2029.2,2028.7,2.14215333]
[1772502049528,2.03669089,2029.2,2028.8,12.72804276]
[1772502049826,2.03669089,2029.2,2028.9,7.09911558]
[1772502050028,2.04064727,2029.2,2028.9,7.09911558]
[1772502050231,2.04064727,2029.2,2029.0,7.09911558]
[1772502050620,6.458,2029.1,2028.8,18.95240453]
[1772502050826,6.458,2029.1,2029.0,7.09911558]
[1772502051331,6.458,2029.1,2028.3,2.30077638]
[1772502051826,0.00395638,2029.2,2028.7,2.30077638]
[1772502052029,6.46195638,2029.2,2028.7,2.30077638]
[1772502052425,6.458,2029.4,2028.9,2.28763464]
[1772502053527,6.458,2029.6,2029.3,2.25938797]
[1772502053724,7.02882939,2029.6,2029.2,6.34159641]
[1772502054436,7.03459461,2029.6,2029.2,6.34159641]
[1772502054729,0.56621182,2029.5,2028.7,2.54241976]
[1772502054935,0.56621182,2029.5,2028.9,2.54241976]
[1772502055237,0.56621182,2029.5,2029.0,3.01160811]
[1772502056735,0.56621182,2029.5,2029.0,5.55185298]
[1772502056935,6.458,2029.4,2029.1,15.26828763]
[1772502057333,6.52210634,2029.4,2029.1,12.72804276]
[1772502057935,0.06410634,2029.3,2029.1,12.72804276]
[1772502058937,6.52630818,2029.4,2029.1,12.72804276]
[1772502059237,6.458,2029.3,2029.1,12.72804276]
[1772502059531,6.52123276,2029.3,2029.1,12.72804276]
[1772502059836,0.06773773,2029.5,2029.1,12.72804276]
[1772502060038,2.03989622,2029.9,2029.1,12.72804276]
[1772502060039,6.458,2029.9,2029.2,2.53365795]
[1772502060232,4.08200244,2030.4,2029.2,8.99165795]
[1772502060435,6.52678968,2030.3,2029.9,5.54238345]
[1772502060632,0.06878968,2030.2,2029.4,2.53077534]
[1772502060836,0.06878968,2030.1,2029.3,15.2588181]
[1772502061038,0.06823737,2029.9,2029.3,15.2633248]
[1772502061336,0.06823737,2029.9,2029.5,3.01160811]
[1772502061537,0.06823737,2029.9,2029.5,5.54265961]
[1772502062238,0.0611489,2029.8,2029.6,12.72804276]
[1772502063739,0.0611489,2029.8,2029.3,0.0045067]
[1772502063930,7.00101301,2029.8,2029.3,12.14953634]
[1772502064133,0.01987275,2029.7,2029.3,12.14953634]
[1772502064338,0.01987275,2029.5,2029.3,12.14953634]
[1772502065229,6.47652096,2029.6,2029.3,12.14953634]
[1772502065636,6.47652096,2029.6,2029.3,14.71265854]
[1772502065831,4.08200244,2030.0,2029.3,14.71265854]
[1772502065832,0.02545995,2029.8,2029.3,14.71265854]
[1772502066139,7.0248033,2029.9,2029.4,2.55965271]
[1772502066441,4.33237122,2030.1,2029.4,2.55965271]
[1772502066442,13.4828033,2029.8,2029.4,2.55965271]
[1772502066639,6.458,2029.7,2029.5,15.15663775]
[1772502067232,6.47180506,2029.7,2029.5,15.15663775]
[1772502067736,6.458,2029.7,2029.5,15.15663775]
[1772502067937,6.458,2029.7,2029.5,17.71653872]
[1772502068139,5.762,2029.7,2029.5,17.71653872]
[1772502068336,4.09445049,2030.1,2029.6,2.55990097]
[1772502068540,13.46703468,2030.0,2029.6,2.55990097]
[1772502068837,6.458,2030.0,2029.8,2.55990097]
[1772502069043,6.458,2030.0,2029.4,12.14502964]
[1772502069241,6.458,2030.0,2029.8,3.01160811]
[1772502070645,0.00403878,2030.1,2029.9,14.28718297]
[1772502070843,6.46203878,2030.1,2029.9,14.28718297]
[1772502071044,2.03669089,2030.0,2029.9,9.50430507]
[1772502071242,0.40840962,2029.9,2029.3,2.68520572]
[1772502071443,0.40840962,2029.7,2029.6,3.01160811]
[1772502071746,6.458,2029.7,2029.3,2.68520572]
[1772502072641,7.86035857,2029.7,2029.3,2.68520572]
[1772502072848,1.40235857,2029.6,2028.9,2.66384771]
[1772502073242,1.51340693,2029.4,2028.9,2.66384771]
[1772502073448,7.97140693,2029.3,2028.9,2.66384771]
[1772502073649,6.458,2029.2,2028.9,2.66384771]
[1772502074046,6.458,2029.2,2028.9,2.6681216]
[1772502075652,6.458,2029.2,2028.9,1.85223324]
[1772502076752,4.32837244,2029.8,2028.9,1.85223324]
[1772502076952,6.458,2029.7,2029.1,2.25338084]
[1772502077454,1.91134044,2029.8,2029.1,2.25338084]
[1772502077752,12.79647124,2029.7,2029.1,2.25338084]
[1772502077952,6.458,2029.7,2029.1,2.25338084]
[1772502080653,0.00403878,2030.1,2029.2,2.98538203]
[1772502080853,1.91682786,2030.1,2029.2,2.98538203]
[1772502081053,1.91682786,2030.1,2029.3,2.98538203]
[1772502081448,1.91315166,2029.9,2029.2,9.44338203]
[1772502081651,6.458,2029.8,2029.3,2.98538203]
[1772502081852,0.00403878,2030.1,2029.3,2.98538203]
[1772502082247,6.34246314,2030.1,2029.3,2.98538203]
[1772502083354,12.80046314,2030.1,2029.3,2.98538203]
[1772502083557,6.46203878,2030.1,2029.3,2.98538203]
[1772502085255,1.66356484,2030.0,2029.3,2.98538203]
[1772502087259,8.1145784,2029.9,2029.3,2.98538203]
[1772502087459,6.457,2029.8,2029.3,2.98538203]
[1772502088860,8.11560775,2029.8,2029.3,2.98538203]
[1772502089458,6.457,2030.0,2029.3,2.98538203]
[1772502090060,6.46103878,2030.1,2029.3,2.98538203]
[1772502090259,1.66453008,2030.0,2029.3,2.98538203]
[1772502090857,0.00403878,2030.1,2029.3,2.98538203]
[1772502091057,1.66446811,2030.0,2029.3,2.98538203]
[1772502092759,6.46103878,2030.1,2029.3,2.98538203]
[1772502093061,8.13181222,2030.1,2029.3,2.98538203]
[1772502095360,1.66773376,2030.0,2029.3,2.98538203]
[1772502100463,1.61880244,2030.7,2029.4,2.98538203]
[1772502100766,1.51707719,2031.0,2029.8,2.98538203]
[1772502100963,7.80428115,2030.9,2030.0,2.98538203]
[1772502101159,1.5169737,2030.9,2030.0,2.98538203]
[1772502101363,5.48504122,2030.8,2030.0,2.98538203]
[1772502101565,0.00549985,2030.8,2030.0,2.98538203]
[1772502102162,5.49054107,2030.8,2030.0,2.98538203]
[1772502103363,7.75527339,2030.8,2030.0,2.98538203]
[1772502103564,7.75527339,2030.8,2030.1,2.98538203]
[1772502105566,2.25598593,2030.7,2030.1,2.98538203]
[1772502106169,2.19218097,2030.5,2030.1,2.98538203]
[1772502106567,4.65538097,2030.5,2030.1,2.98538203]
[1772502106767,2.4632,2030.5,2030.1,2.98538203]
[1772502111367,5.48504122,2030.4,2030.1,2.98538203]
[1772502112267,0.00549985,2030.8,2030.1,2.98538203]
[1772502112473,6.455,2030.7,2030.1,2.98538203]
[1772502112770,2.13825331,2030.6,2030.1,2.98538203]
[1772502112967,4.60145331,2030.6,2030.1,2.98538203]
[1772502113372,2.132412,2030.2,2029.5,3.45864119]
[1772502113567,2.132412,2030.1,2029.5,3.45864119]
[1772502113968,2.4632,2030.0,2029.5,3.45864119]
[1772502114262,5.48504122,2030.1,2029.5,3.45864119]
[1772502114463,10.0760275,2030.1,2029.5,3.45864119]
[1772502114663,2.12778628,2030.0,2029.3,9.91364119]
[1772502114874,2.12778628,2030.0,2029.4,3.45864119]
[1772502115365,2.12177409,2029.7,2029.2,3.45864119]
[1772502115767,7.60681531,2029.6,2029.2,3.45864119]
[1772502115970,2.4632,2029.5,2029.2,3.45864119]
[1772502116363,2.12177409,2029.6,2029.2,3.45864119]
[1772502116563,5.48504122,2029.5,2029.2,3.45864119]
[1772502116866,7.94824122,2029.5,2029.2,3.45864119]
[1772502117064,5.48504122,2029.5,2029.2,3.45864119]
[1772502117464,2.4632,2029.4,2029.2,3.45864119]
[1772502119069,2.4632,2029.4,2029.0,3.45864119]
[1772502119373,7.5622476,2029.5,2029.0,3.45864119]
[1772502119670,2.07720638,2029.4,2029.0,3.45864119]
[1772502120075,2.4632,2029.3,2029.0,3.45864119]
[1772502120374,0.00622113,2029.3,2029.0,3.45864119]
[1772502120576,2.46942113,2029.3,2029.0,3.45864119]
[1772502120877,0.00622113,2029.3,2029.0,3.45864119]
[1772502121076,2.46942113,2029.3,2029.0,3.45864119]
[1772502121680,2.06252844,2029.1,2028.9,0.00427389]
[1772502121871,2.06252844,2029.1,2028.6,3.45864119]
[1772502122068,5.48504122,2029.0,2028.6,3.45864119]
[1772502122479,2.03584653,2028.9,2028.4,3.45864119]
[1772502122776,2.03584653,2028.9,2028.4,0.0059937]
[1772502122974,11.94104122,2029.0,2028.4,0.0059937]
[1772502122975,2.4632,2028.6,2028.4,0.0059937]
[1772502123176,2.38337489,2028.6,2028.0,3.45864119]
[1772502123377,2.4632,2028.4,2028.0,3.45864119]
[1772502123572,7.86841611,2028.5,2028.0,3.45864119]
[1772502123877,2.4632,2028.4,2028.0,3.45864119]
[1772502124071,2.33676855,2028.9,2028.2,3.45864119]
[1772502124272,9.74050307,2029.0,2028.2,3.45864119]
[1772502124476,3.28450307,2028.9,2028.2,3.45864119]
[1772502124672,2.04791696,2029.3,2028.2,3.45864119]
[1772502124886,0.00622113,2029.3,2028.4,3.45864119]
[1772502125075,0.00622113,2029.3,2028.6,3.45864119]
[1772502126680,3.2907242,2029.3,2028.6,3.45864119]
[1772502126879,3.2907242,2029.3,2028.0,0.00491618]
[1772502126880,3.28450307,2029.1,2028.4,3.45864119]
[1772502128275,3.2907242,2029.3,2028.4,3.45864119]
[1772502128480,0.00622113,2029.3,2028.4,3.45864119]
[1772502128778,3.2907242,2029.3,2028.4,3.45864119]
[1772502129184,3.28450307,2029.9,2028.9,3.45864119]
[1772502129371,3.28450307,2029.9,2029.0,3.45864119]
[1772502130077,0.00379766,2029.9,2029.0,3.45864119]
[1772502130281,3.28830073,2029.9,2029.0,3.45864119]
[1772502130683,3.28450307,2029.8,2029.0,3.45864119]
[1772502131576,3.28450307,2029.8,2028.9,6.457]
[1772502131776,3.28450307,2029.8,2029.0,3.45864119]
[1772502132986,9.74150307,2029.8,2029.0,3.45864119]
[1772502133383,3.28450307,2029.7,2029.0,3.45864119]
[1772502143087,3.56170394,2029.9,2029.0,3.45864119]
[1772502144491,0.00379766,2029.9,2029.0,3.45864119]
[1772502145490,3.56170394,2029.9,2029.0,3.45864119]
[1772502150693,3.55790628,2030.2,2029.2,3.70722607]
[1772502150896,3.55790628,2030.2,2029.4,3.70722607]
[1772502151696,3.56399789,2030.2,2029.4,3.70722607]
[1772502152098,0.00609161,2030.2,2029.5,3.70722607]
[1772502152301,0.00609161,2030.2,2029.5,3.71137917]
[1772502152492,3.56399789,2030.2,2029.5,3.71137917]
[1772502158194,3.55790628,2030.8,2029.7,3.70722607]
[1772502158398,3.55790628,2030.6,2029.9,3.70722607]
[1772502159201,3.56318001,2030.6,2029.9,3.70722607]
[1772502162503,3.56318001,2030.6,2029.8,3.70722607]
[1772502162804,3.56318001,2030.6,2029.8,10.16322607]
[1772502163104,3.56318001,2030.6,2029.9,3.70722607]
[1772502165006,3.56318001,2030.6,2029.6,10.16322607]
[1772502165201,3.56318001,2030.6,2029.6,6.456]
[1772502165399,3.55790628,2030.3,2029.5,0.0041531]
[1772502165606,3.55790628,2030.1,2029.5,0.0041531]
[1772502167010,3.55790628,2030.0,2029.0,3.70722607]
[1772502167810,3.55790628,2030.0,2029.0,3.71311344]
[1772502168310,3.55790628,2030.0,2029.1,3.588557]
[1772502172017,6.456,2030.1,2029.1,3.588557]
[1772502172018,3.43166588,2030.3,2029.1,3.588557]
[1772502172215,3.43166588,2030.1,2029.3,3.588557]
[1772502172418,3.43166588,2030.1,2029.5,3.588557]
[1772502173412,3.43166588,2030.3,2029.5,3.588557]
[1772502173616,3.43166588,2030.3,2029.6,3.588557]
[1772502174824,3.43166588,2030.3,2029.5,3.588557]
[1772502175018,3.43166588,2030.1,2029.2,3.588557]
[1772502181221,3.43166588,2030.5,2029.7,3.588557]
[1772502184027,3.43166588,2030.5,2029.6,6.456]
[1772502184229,3.43166588,2030.5,2029.7,3.588557]
[1772502186424,3.43166588,2030.5,2029.4,3.588557]
[1772502186623,3.43166588,2030.3,2029.2,3.588557]
[1772502186828,3.43166588,2030.1,2029.2,3.588557]
[1772502187425,0.24637,2029.8,2029.0,0.00588737]
[1772502187732,3.43166588,2029.7,2029.0,0.00588737]
[1772502187925,9.88766588,2029.7,2029.0,0.00588737]
[1772502188230,3.43166588,2029.6,2029.0,0.00588737]
[1772502190932,3.43166588,2029.6,2028.5,3.588557]
[1772502191732,3.43166588,2029.6,2028.5,3.59437912]
[1772502192433,3.43166588,2029.6,2028.7,3.588557]
[1772502192633,3.43166588,2029.6,2028.9,3.588557]
[1772502199038,4.37148315,2030.3,2028.9,3.588557]
[1772502199039,3.22638828,2029.9,2028.9,3.588557]
[1772502199930,3.22638828,2029.6,2028.5,3.3792076]
[1772502200134,3.22638828,2029.4,2028.5,0.00582212]
[1772502200641,3.22638828,2029.4,2028.2,3.37338548]
[1772502200642,3.22638828,2029.2,2028.2,3.37338548]
[1772502200837,3.22638828,2029.2,2028.1,9.83038548]
[1772502201141,3.22638828,2029.1,2028.2,3.37338548]
[1772502201639,3.23015737,2029.1,2028.2,3.37959812]
[1772502204943,3.23015737,2029.1,2028.2,0.00621264]
[1772502206544,3.23015737,2029.1,2028.2,3.37959812]
[1772502206841,3.22638828,2029.0,2028.2,3.37959812]
[1772502207237,0.00376909,2029.1,2028.4,3.37338548]
[1772502207238,3.23015737,2029.1,2028.4,3.37338548]
[1772502207442,0.00376909,2029.1,2028.4,3.37338548]
[1772502207642,3.23015737,2029.1,2028.4,3.37338548]
[1772502209247,0.00376909,2029.1,2028.4,3.37338548]
[1772502211150,3.22638828,2029.4,2028.4,3.37338548]
[1772502212149,3.2323844,2029.4,2028.4,3.37338548]
[1772502217457,3.2323844,2029.4,2028.6,3.37338548]
[1772502222757,3.22638828,2029.6,2028.8,3.37338548]
[1772502223256,3.22638828,2030.1,2028.8,3.61986548]
[1772502223457,4.1102405,2030.2,2028.8,3.61986548]
[1772502223458,3.22638828,2029.9,2028.8,3.61986548]
[1772502223854,3.23180444,2029.9,2028.8,3.61986548]
[1772502226456,3.23180444,2029.9,2028.6,2.03887703]
[1772502226457,3.22638828,2029.7,2028.6,3.37338548]
[1772502228261,3.22638828,2029.7,2028.8,3.2550369]
[1772502228460,3.22638828,2029.7,2029.0,3.2550369]
[1772502231963,3.22638828,2029.7,2028.8,3.2550369]
[1772502232164,3.22638828,2029.7,2028.9,3.2550369]
[1772502233762,0.00541616,2029.9,2029.1,3.2550369]
[1772502233964,3.11641111,2029.9,2029.3,3.2550369]
[1772502236669,3.11099495,2030.9,2029.9,3.2550369]
[1772502236967,7.73338769,2031.6,2030.2,3.2550369]
[1772502236968,3.11099495,2031.3,2030.2,3.2550369]
[1772502237667,3.11666163,2031.3,2030.4,3.2550369]
[1772502237969,3.11666163,2031.3,2030.6,3.2550369]
[1772502238467,3.11099495,2031.9,2030.7,2.28513703]
[1772502238661,3.11099495,2031.9,2031.1,3.2550369]
[1772502238865,3.11099495,2031.9,2031.3,3.2550369]
[1772502239169,3.11099495,2031.9,2031.3,9.7120369]
[1772502239569,3.11556268,2031.9,2031.3,9.7120369]
[1772502239867,3.11556268,2031.9,2031.4,3.2550369]
[1772502240066,3.11099495,2032.6,2031.4,6.05595]
[1772502240267,3.11099495,2032.6,2031.8,3.2550369]
[1772502240466,3.18399495,2032.8,2032.1,3.2550369]
[1772502240770,3.18399495,2032.8,2032.2,6.456]
[1772502241175,3.18831074,2032.8,2032.2,6.46038805]
[1772502242269,3.18831074,2032.8,2032.2,0.00438805]
[1772502242472,3.18831074,2032.8,2031.8,6.455]
[1772502243374,3.18831074,2032.8,2031.8,6.45863224]
[1772502243675,3.18831074,2032.8,2031.8,0.00363224]
[1772502243871,3.11099495,2032.7,2031.8,0.00363224]
[1772502244074,3.11099495,2032.7,2031.3,3.2550369]
[1772502244373,3.11099495,2032.7,2031.4,9.7090369]
[1772502244573,3.11099495,2032.7,2031.5,3.2550369]
[1772502245177,3.11099495,2032.7,2031.5,3.25940485]
[1772502245579,3.11099495,2032.4,2031.5,0.00436795]
[1772502246577,3.11099495,2032.4,2031.5,3.25940485]
[1772502246780,3.11099495,2032.3,2031.5,3.25940485]
[1772502247277,3.11099495,2032.3,2031.7,3.2550369]
[1772502249478,3.11099495,2032.3,2031.6,6.453]
[1772502250683,3.11099495,2032.3,2031.6,9.7080369]
[1772502251882,3.11099495,2032.3,2031.5,3.25940485]
[1772502252174,3.11099495,2032.5,2031.5,3.25940485]
[1772502252381,3.11099495,2032.5,2031.6,3.2550369]
[1772502252882,3.11099495,2032.5,2031.8,3.2550369]
[1772502253081,3.11099495,2032.7,2031.8,3.2550369]
[1772502254481,3.18831074,2032.8,2031.8,3.2550369]
[1772502254876,0.07731579,2032.8,2032.1,3.2550369]
[1772502255182,0.07731579,2032.8,2032.3,3.2550369]
[1772502255384,3.18831074,2032.8,2032.3,3.2550369]
[1772502255582,0.07731579,2032.8,2032.3,3.2550369]
[1772502255882,3.18831074,2032.8,2032.3,3.2550369]
[1772502256478,3.18831074,2032.8,2031.7,2.03492224]
[1772502256781,3.11099495,2032.3,2031.6,3.2550369]
[1772502257182,3.11099495,2032.3,2031.5,0.00436795]
[1772502258583,3.17056107,2032.0,2031.5,0.00436795]
[1772502258882,3.17056107,2032.0,2031.5,2.98454705]
[1772502259278,3.17056107,2032.0,2030.9,2.9801791]
[1772502259485,6.45,2032.5,2030.9,2.9801791]
[1772502259486,3.17056107,2031.8,2030.9,2.9801791]
[1772502260280,3.17056107,2031.8,2030.9,2.98414195]
[1772502266988,3.17056107,2031.5,2030.6,2.9801791]
[1772502267983,3.17056107,2031.5,2030.6,2.98379715]
[1772502269184,2.03492224,2031.4,2030.6,2.98379715]
[1772502269386,3.17056107,2031.3,2030.6,2.98379715]
[1772502269588,3.17639901,2031.3,2030.6,2.98379715]
[1772502270784,0.00583794,2031.3,2030.6,2.98379715]
[1772502270984,0.00583794,2031.3,2030.6,5.01871939]
[1772502271188,0.00583794,2031.3,2030.7,2.9801791]
[1772502272593,3.17056107,2031.9,2030.7,2.9801791]
[1772502273688,3.17531902,2031.9,2030.7,2.9801791]
[1772502274693,3.42143902,2031.9,2030.7,2.9801791]
[1772502274893,3.17056107,2031.7,2030.7,2.9801791]
[1772502277590,3.17056107,2031.7,2030.6,0.00361805]
[1772502277796,9.33732571,2031.6,2030.6,2.98379715]
[1772502277998,3.17056107,2031.5,2030.6,2.98379715]
[1772502286306,3.41672107,2031.5,2030.6,2.98379715]
[1772502287508,2.76848606,2031.3,2030.6,2.98379715]
[1772502290514,2.77324401,2031.9,2031.1,2.94860433]
[1772502292211,2.76848606,2031.7,2030.9,2.94860433]
[1772502292811,2.76848606,2031.5,2030.9,2.94860433]
[1772502300227,2.76848606,2031.5,2030.6,0.00361805]
[1772502300519,2.76848606,2031.2,2030.5,2.94860433]
[1772502300915,2.76848606,2031.2,2030.2,2.94860433]
[1772502301220,2.76848606,2031.0,2030.2,2.94860433]
[1772502301623,2.76848606,2030.6,2029.8,2.94860433]
[1772502301814,2.03492224,2030.7,2029.4,2.94860433]
[1772502301815,2.76848606,2030.3,2029.4,2.94860433]
[1772502302520,9.22048606,2030.5,2029.5,2.94860433]
[1772502302720,2.76848606,2030.4,2029.5,2.95360478]
[1772502303617,0.00428823,2030.5,2029.7,2.94860433]
[1772502303819,0.00428823,2030.5,2029.8,2.94860433]
[1772502304018,2.77277429,2030.5,2029.8,2.94860433]
[1772502304815,2.77277429,2030.5,2029.7,9.40060433]
[1772502305020,2.76848606,2030.3,2029.5,2.95360478]
[1772502306319,0.00428823,2030.5,2029.5,2.95360478]
[1772502306320,2.77277429,2030.5,2029.5,2.95360478]
[1772502306920,2.77277429,2030.5,2029.7,2.94860433]
[1772502307223,0.00428823,2030.5,2029.7,2.94860433]
[1772502311926,2.76848606,2030.9,2029.7,2.94860433]
[1772502312319,2.76848606,2031.4,2030.0,2.94860433]
[1772502312517,2.76848606,2031.4,2030.2,2.94860433]
[1772502312921,2.76848606,2031.2,2030.1,6.454]
[1772502313118,3.01471606,2030.9,2029.8,2.94860433]
[1772502314323,2.76848606,2030.8,2029.8,2.94860433]
[1772502317721,2.82471915,2030.6,2029.7,2.66207756]
[1772502319819,2.82471915,2030.6,2029.5,2.66707801]
[1772502321625,2.69518451,2030.9,2029.7,2.66207756]
[1772502321931,2.69518451,2030.9,2029.8,2.66207756]
[1772502323031,2.69518451,2030.9,2029.5,0.00500045]
[1772502323032,2.69518451,2030.4,2029.5,0.00500045]
[1772502323230,2.69518451,2030.3,2029.5,0.00500045]
[1772502324627,2.69518451,2029.9,2029.0,9.11607756]
[1772502324827,2.69518451,2029.9,2029.0,2.66207756]
[1772502325621,2.70143696,2029.9,2029.0,2.66738912]
[1772502326329,2.70143696,2029.9,2029.0,0.00531156]
[1772502327226,2.70143696,2029.9,2029.0,2.66738912]
[1772502328831,2.69518451,2029.7,2029.0,0.00531156]
[1772502329229,2.69518451,2029.7,2029.0,2.66738912]
[1772502333431,2.70143696,2029.9,2029.0,2.66738912]
[1772502334430,4.08737478,2030.8,2029.8,2.66207756]
[1772502334638,2.37012791,2031.4,2030.0,2.66207756]
[1772502334836,2.37012791,2031.4,2030.2,2.66207756]
[1772502335029,6.456,2031.5,2030.4,2.66207756]
[1772502335335,8.81909404,2031.5,2030.4,2.66207756]
[1772502335531,8.82459064,2031.5,2030.4,2.66207756]
[1772502336530,2.69297934,2031.4,2030.4,2.66207756]
[1772502337030,2.69297934,2031.4,2029.7,16.33525193]
[1772502337031,2.69518451,2031.0,2029.8,2.66207756]
[1772502337238,2.69518451,2030.7,2029.2,2.66207756]
[1772502339029,2.69518451,2030.5,2029.2,2.66207756]
[1772502347544,2.69518451,2030.5,2029.4,2.66207756]
[1772502349738,2.94147451,2030.5,2029.4,2.66207756]
[1772502350547,2.94147451,2030.5,2029.1,2.66268751]
[1772502350848,2.64266964,2030.3,2029.1,2.66268751]
[1772502351250,2.64266964,2030.1,2029.1,2.66268751]
[1772502351649,2.64266964,2030.3,2029.3,2.66268751]
[1772502353350,2.64266964,2030.3,2029.1,2.66268751]
[1772502355749,2.64266964,2030.1,2029.1,2.66268751]
[1772502357247,2.64266964,2030.1,2029.0,0.00531156]
[1772502357248,8.94916964,2030.0,2029.0,0.00531156]
[1772502357452,2.64266964,2029.4,2028.3,2.66268751]
[1772502357651,2.64266964,2029.2,2028.3,2.66268751]
[1772502358452,0.00550948,2029.2,2028.5,2.66268751]
[1772502359047,2.64266964,2029.6,2028.7,2.66268751]
[1772502359553,6.456,2029.8,2028.7,2.66268751]
[1772502359554,2.64266964,2029.8,2028.7,2.66268751]
[1772502359949,2.64761228,2029.8,2028.7,2.66268751]
[1772502361949,6.456,2029.7,2028.7,2.66268751]
[1772502362151,2.61560921,2029.6,2028.7,2.66268751]
[1772502363854,2.6007163,2029.5,2028.7,2.66268751]
[1772502364655,2.58778919,2029.7,2028.7,2.66268751]
[1772502366751,6.46094264,2029.8,2028.7,2.66268751]
[1772502366752,9.02942487,2029.6,2028.7,2.66268751]
[1772502366954,2.57342487,2029.5,2028.7,2.66268751]
[1772502375162,8.94244251,2029.7,2028.9,2.66268751]
[1772502375363,2.48644251,2029.6,2028.9,2.66268751]
[1772502375760,2.48644251,2029.6,2028.6,2.66268751]
[1772502376063,2.4713411,2029.0,2028.3,0.00381809]
[1772502379070,2.4713411,2029.0,2028.3,2.74987144]
[1772502379271,8.92585137,2028.9,2028.3,2.74987144]
[1772502379471,2.46985137,2028.8,2028.3,2.74987144]
[1772502379872,2.46985137,2028.8,2028.3,0.00381809]
[1772502380265,2.46985137,2028.8,2028.3,2.74987144]